fUSD/lending_fUSD_20260408
["ID","MTS","AMOUNT","RATE_DAILY","PERIOD"]
[420062190,1775642707727,153.0,9.071e-05,3]
[420062191,1775642734227,166.0,0.000161,120]
[420062192,1775642756540,222.0,0.000161,120]
[420062193,1775642756674,1329.33,8.667e-05,2]
[420062194,1775642765575,153.0,9.071e-05,3]
[420062195,1775642785462,451.88,8.598e-05,2]
[420062196,1775642858980,1916.62,8e-05,2]
[420062197,1775642859003,1058.5923007,8e-05,2]
[420062198,1775642886804,153.0,9.071e-05,3]
[420062199,1775642916682,8788.4176993,9.466e-05,2]
[420062200,1775642916708,10000.01,9.466e-05,2]
[420062201,1775642916733,10000.01,9.466e-05,2]
[420062202,1775642928059,-286.0,9.466e-05,2]
[420062203,1775642932431,-6248.13733485,9.466e-05,2]
[420062204,1775642932445,-10000.01,9.466e-05,2]
[420062205,1775642933070,-10000.01,9.466e-05,2]
[420062206,1775642933226,-10000.01,9.466e-05,2]
[420062207,1775642939303,-10000.01,9.466e-05,2]
[420062208,1775642939321,-10000.01,9.466e-05,2]
[420062209,1775643019076,-1542.28,8.634e-05,2]
[420062210,1775643032379,-1230.22,9.043e-05,2]
[420062211,1775643032392,-415.04644493,9.043e-05,2]
[420062212,1775643032403,-84.95355507,9.451e-05,2]
[420062213,1775643032416,-215.04644493,9.451e-05,2]
[420062214,1775643032427,-300.0,9.451e-05,2]
[420062215,1775643032437,-1200.0,9.451e-05,2]
[420062216,1775643032448,-286.0,9.452e-05,2]
[420062217,1775643032458,-10241.8853529,9.452e-05,2]
[420062218,1775643032470,-7211.0,9.452e-05,2]
[420062219,1775643032483,-2547.1146471,9.452e-05,2]
[420062220,1775643032494,-250.0,9.459e-05,2]
[420062221,1775643032504,-150.0,9.465e-05,2]
[420062222,1775643032515,-1200.0,9.465e-05,2]
[420062223,1775643032525,-290.89212613,9.466e-05,2]
[420062224,1775643032537,-534.06656813,9.466e-05,2]
[420062225,1775643032759,-335.31456548,9.465e-05,2]
[420062226,1775643032773,-164.68543452,9.465e-05,2]
[420062227,1775643032784,-500.0,9.465e-05,2]
[420062228,1775643032794,-400.53693728,9.465e-05,2]
[420062229,1775643032807,-45.34114504,9.465e-05,2]
[420062230,1775643032818,-500.0,9.465e-05,2]
[420062231,1775643032828,-3449.33802928,9.466e-05,2]
[420062232,1775643032840,-2171.79258427,9.466e-05,2]
[420062233,1775643032852,-336.37939,9.466e-05,2]
[420062234,1775643032864,-5599.60610807,9.466e-05,2]
[420062235,1775643032876,-2186.78811203,9.466e-05,2]
[420062236,1775643032902,-390.37271931,9.466e-05,2]
[420062237,1775643032917,-944037.17324407,9.466e-05,2]
[420062238,1775643032929,-87643.01141114,9.466e-05,2]
[420062239,1775643032942,-93268.83160623,9.466e-05,2]
[420062240,1775643032955,-1623.11679656,9.466e-05,2]
[420062241,1775643034168,-525.92801948,9.465e-05,2]
[420062242,1775643034199,-300.04679151,9.465e-05,2]
[420062243,1775643034230,-500.0,9.465e-05,2]
[420062244,1775643034262,-500.0,9.465e-05,2]
[420062245,1775643034293,-500.0,9.465e-05,2]
[420062246,1775643034325,-500.0,9.465e-05,2]
[420062247,1775643034356,-500.0,9.465e-05,2]
[420062248,1775643034390,-563.48870266,9.465e-05,2]
[420062249,1775643034422,-500.0,9.465e-05,2]
[420062250,1775643034459,-500.0,9.465e-05,2]
[420062257,1775643038593,-347.24338275,9.466e-05,2]
[420062258,1775643038604,-401.616215,9.466e-05,2]
[420062259,1775643038616,-8539.3814926,9.466e-05,2]
[420062260,1775643038628,-452.72668511,9.466e-05,2]
[420062261,1775643038960,-73846.88944458,9.466e-05,2]
[420062263,1775643038972,-307.07235897,9.466e-05,2]
[420062265,1775643038984,-2097.93,9.466e-05,2]
[420062334,1775643041931,-25390.74730203,9.466e-05,2]
[420062335,1775643042302,-237.75909285,9.466e-05,2]
[420062336,1775643042520,-943.78799,9.466e-05,2]
[420062337,1775643042532,-34575.07031925,9.466e-05,2]
[420062338,1775643042544,-461.38777926,9.466e-05,2]
[420062339,1775643042627,-279.32409154,9.466e-05,2]
[420062359,1775643044210,-2294.58780677,9.466e-05,2]
[420062360,1775643044222,-385.35044793,9.466e-05,2]
[420062365,1775643046446,-1035.08389315,9.466e-05,2]
[420062366,1775643046458,-92943.14801624,9.466e-05,2]
[420062367,1775643046469,-902.4970347,9.466e-05,2]
[420062368,1775643046481,-2178.4481999,9.466e-05,2]
[420062369,1775643046492,-515.642885,9.466e-05,2]
[420062371,1775643046788,-5090.8281715,9.466e-05,2]
[420062372,1775643046799,-83746.75162815,9.466e-05,2]
[420062373,1775643046810,-525.568331,9.466e-05,2]
[420062376,1775643053279,-10000.01,9.466e-05,2]
[420062377,1775643053308,-10000.01,9.466e-05,2]
[420062378,1775643053322,-10000.01,9.466e-05,2]
[420062379,1775643053341,-10000.01,9.466e-05,2]
[420062380,1775643053356,-10000.01,9.466e-05,2]
[420062381,1775643053374,-10000.01,9.466e-05,2]
[420062382,1775643053389,-10000.01,9.466e-05,2]
[420062383,1775643053411,-10000.01,9.466e-05,2]
[420062384,1775643053426,-10000.01,9.466e-05,2]
[420062385,1775643053440,-10000.01,9.466e-05,2]
[420062386,1775643064667,-10000.01,9.466e-05,2]
[420062387,1775643064801,-10000.01,9.466e-05,2]
[420062388,1775643064918,-10000.01,9.466e-05,2]
[420062389,1775643065062,-10000.01,9.466e-05,2]
[420062390,1775643065184,-10000.01,9.466e-05,2]
[420062391,1775643065289,-10000.01,9.466e-05,2]
[420062392,1775643065393,-10000.01,9.466e-05,2]
[420062393,1775643065491,-10000.01,9.466e-05,2]
[420062394,1775643065609,-10000.01,9.466e-05,2]
[420062395,1775643065714,-10000.01,9.466e-05,2]
[420062396,1775643088415,5000.01,9.277e-05,2]
[420062397,1775643088439,112.183,9.277e-05,2]
[420062398,1775643088472,307.478,9.277e-05,2]
[420062399,1775643105350,3322.9215,9.366e-05,2]
[420062400,1775643111456,6677.0885,9.366e-05,2]
[420062401,1775643111479,2493.2895,9.366e-05,2]
[420062403,1775643117504,2500.0,9.366e-05,2]
[420062404,1775643201594,10000.01,9.366e-05,2]
[420062405,1775643201617,10000.01,9.366e-05,2]
[420062406,1775643201640,10000.01,9.366e-05,2]
[420062407,1775643248160,162.0,9.366e-05,3]
[420062408,1775643249776,1586.804937,9.319e-05,2]
[420062409,1775643305951,162.0,9.319e-05,3]
[420062410,1775643330716,1889.59,8.65e-05,2]
[420062411,1775643367677,169.0,9.319e-05,3]
[420062412,1775643397261,200.0,9.3e-05,2]
[420062415,1775643425834,169.0,9.319e-05,3]
[420062416,1775643487602,170.0,9.319e-05,3]
[420062417,1775643515542,1500.0,8.65e-05,2]
[420062418,1775643525794,8500.01,8.617e-05,2]
[420062419,1775643525818,5000.01,8.617e-05,2]
[420062420,1775643525841,5000.01,8.617e-05,2]
[420062421,1775643525865,5000.01,8.617e-05,2]
[420062422,1775643529289,-903.954063,8.617e-05,2]
[420062423,1775643529385,-5000.01,8.617e-05,2]
[420062424,1775643532380,-5000.01,8.617e-05,2]
[420062425,1775643532590,-5000.01,8.617e-05,2]
[420062426,1775643532739,-1595.764063,8.617e-05,2]
[420062427,1775643532763,-1808.481874,8.617e-05,2]
[420062428,1775643546374,178.0,9.319e-05,3]
[420062429,1775643563154,500.0,8.601e-05,2]
[420062431,1775643606626,154.0,9.319e-05,3]
[420062432,1775643607360,178.0,9.319e-05,3]
[420062433,1775643616331,-300.0,9.364e-05,2]
[420062434,1775643616360,-1200.0,9.364e-05,2]
[420062435,1775643616388,-250.0,9.365e-05,2]
[420062436,1775643616416,-150.0,9.365e-05,2]
[420062437,1775643616443,-179.14916869,9.365e-05,2]
[420062438,1775643616471,-5000.0,9.365e-05,2]
[420062439,1775643616499,-2920.85083131,9.366e-05,2]
[420062440,1775643617730,-120.89966869,9.366e-05,2]
[420062441,1775643617756,-2709.4327,9.366e-05,2]
[420062442,1775643617783,-7169.66763131,9.366e-05,2]
[420062443,1775643618075,-7830.36236869,9.366e-05,2]
[420062444,1775643618103,-2169.63763131,9.366e-05,2]
[420062445,1775643618756,-779.70876869,9.366e-05,2]
[420062446,1775643618784,-2500.0,9.366e-05,2]
[420062447,1775643618812,-500.0,9.443e-05,2]
[420062448,1775643618838,-500.0,9.443e-05,2]
[420062449,1775643618864,-457.9438199,9.443e-05,2]
[420062450,1775643618889,-500.0,9.443e-05,2]
[420062451,1775643618916,-500.0,9.443e-05,2]
[420062452,1775643618943,-500.0,9.443e-05,2]
[420062453,1775643618969,-500.0,9.463e-05,2]
[420062454,1775643618996,-353.40897657,9.463e-05,2]
[420062455,1775643619022,-243.12433797,9.463e-05,2]
[420062456,1775643619054,-704.00878691,9.463e-05,2]
[420062457,1775643619086,-704.00878691,9.463e-05,2]
[420062458,1775643619116,-704.00878691,9.463e-05,2]
[420062459,1775643619148,-553.78773614,9.463e-05,2]
[420062460,1775643619426,-150.22105077,9.463e-05,2]
[420062461,1775643619458,-704.00878691,9.463e-05,2]
[420062462,1775643619489,-704.00878691,9.463e-05,2]
[420062463,1775643619521,-704.00878691,9.463e-05,2]
[420062464,1775643619552,-704.00878691,9.463e-05,2]
[420062465,1775643619582,-704.00878691,9.463e-05,2]
[420062466,1775643619611,-704.00878691,9.463e-05,2]
[420062467,1775643619642,-704.00878691,9.463e-05,2]
[420062468,1775643619674,-704.00878691,9.463e-05,2]
[420062469,1775643619704,-704.00878691,9.463e-05,2]
[420062470,1775643619734,-704.00878691,9.463e-05,2]
[420062471,1775643619766,-704.00878691,9.463e-05,2]
[420062472,1775643619798,-704.00878691,9.463e-05,2]
[420062473,1775643619829,-704.00878691,9.463e-05,2]
[420062474,1775643619859,-697.6647194,9.463e-05,2]
[420062475,1775643622323,-6.34406751,9.463e-05,2]
[420062476,1775643622352,-704.00878691,9.463e-05,2]
[420062477,1775643622379,-704.00878691,9.463e-05,2]
[420062478,1775643622405,-704.00878691,9.463e-05,2]
[420062479,1775643622434,-704.00878691,9.463e-05,2]
[420062480,1775643622462,-704.00878691,9.463e-05,2]
[420062481,1775643622490,-704.00878691,9.463e-05,2]
[420062482,1775643622519,-704.00878691,9.463e-05,2]
[420062483,1775643622548,-704.00878691,9.463e-05,2]
[420062484,1775643622576,-704.00878691,9.463e-05,2]
[420062485,1775643622605,-704.00878691,9.463e-05,2]
[420062486,1775643622634,-704.00878691,9.463e-05,2]
[420062487,1775643622658,-704.00878691,9.463e-05,2]
[420062488,1775643622685,-704.00878691,9.463e-05,2]
[420062489,1775643622710,-704.00878691,9.463e-05,2]
[420062490,1775643622735,-137.53291575,9.463e-05,2]
[420062491,1775643622817,-566.47587116,9.463e-05,2]
[420062492,1775643622844,-704.00878691,9.463e-05,2]
[420062493,1775643622870,-704.00878691,9.463e-05,2]
[420062494,1775643622898,-704.00878691,9.463e-05,2]
[420062495,1775643622925,-704.00878691,9.463e-05,2]
[420062496,1775643623106,-704.00878691,9.463e-05,2]
[420062497,1775643623134,-704.00878691,9.463e-05,2]
[420062498,1775643623162,-704.00878691,9.463e-05,2]
[420062499,1775643623189,-704.00878691,9.463e-05,2]
[420062500,1775643623216,-704.00878691,9.463e-05,2]
[420062501,1775643623242,-704.00878691,9.463e-05,2]
[420062502,1775643623268,-704.00878691,9.463e-05,2]
[420062503,1775643623294,-704.00878691,9.463e-05,2]
[420062504,1775643623320,-704.00878691,9.463e-05,2]
[420062505,1775643623346,-281.40989901,9.463e-05,2]
[420062506,1775643623409,-422.5988879,9.463e-05,2]
[420062507,1775643623436,-704.00878691,9.463e-05,2]
[420062508,1775643623465,-704.00878691,9.463e-05,2]
[420062509,1775643623493,-704.00878691,9.463e-05,2]
[420062510,1775643623520,-704.00878691,9.463e-05,2]
[420062511,1775643623547,-704.00878691,9.463e-05,2]
[420062512,1775643623573,-704.00878691,9.463e-05,2]
[420062513,1775643623615,-704.00878691,9.463e-05,2]
[420062514,1775643623642,-204.39835188,9.463e-05,2]
[420062515,1775643623670,-704.00878691,9.463e-05,2]
[420062516,1775643623700,-704.00878691,9.463e-05,2]
[420062517,1775643623729,-2747.20163544,9.463e-05,2]
[420062518,1775643623759,-289.72204259,9.463e-05,2]
[420062519,1775643623857,-2457.47959285,9.463e-05,2]
[420062520,1775643623884,-2747.20163544,9.463e-05,2]
[420062521,1775643623910,-2747.20163544,9.463e-05,2]
[420062522,1775643623937,-2048.11713627,9.463e-05,2]
[420062523,1775643624117,-699.08449917,9.463e-05,2]
[420062524,1775643624144,-2747.20163544,9.463e-05,2]
[420062525,1775643624171,-2747.20163544,9.463e-05,2]
[420062526,1775643624206,-2747.20163544,9.463e-05,2]
[420062527,1775643624234,-1059.31059451,9.463e-05,2]
[420062528,1775643624309,-1687.89104093,9.463e-05,2]
[420062529,1775643624338,-2747.20163544,9.463e-05,2]
[420062530,1775643624367,-2747.20163544,9.463e-05,2]
[420062531,1775643624394,-2747.20163544,9.463e-05,2]
[420062532,1775643624422,-70.50405275,9.463e-05,2]
[420062533,1775643624512,-2676.69758269,9.463e-05,2]
[420062534,1775643624539,-2747.20163544,9.463e-05,2]
[420062535,1775643624566,-2747.20163544,9.463e-05,2]
[420062536,1775643624594,-1828.89914643,9.463e-05,2]
[420062537,1775643624737,-918.30248901,9.463e-05,2]
[420062538,1775643624768,-2747.20163544,9.463e-05,2]
[420062539,1775643624805,-2747.20163544,9.463e-05,2]
[420062540,1775643624835,-2747.20163544,9.463e-05,2]
[420062541,1775643624863,-840.09260467,9.463e-05,2]
[420062542,1775643624923,-1907.10903077,9.463e-05,2]
[420062543,1775643624951,-2747.20163544,9.463e-05,2]
[420062544,1775643624978,-2747.20163544,9.463e-05,2]
[420062545,1775643625006,-2598.48769835,9.463e-05,2]
[420062546,1775643625080,-148.71393709,9.463e-05,2]
[420062547,1775643625108,-2747.20163544,9.463e-05,2]
[420062548,1775643625137,-2747.20163544,9.463e-05,2]
[420062549,1775643625163,-2747.20163544,9.463e-05,2]
[420062550,1775643625191,-1609.68115659,9.463e-05,2]
[420062551,1775643625283,-1137.52047885,9.463e-05,2]
[420062552,1775643625311,-2395.197242,9.463e-05,2]
[420062553,1775643625339,-2395.197242,9.463e-05,2]
[420062554,1775643625368,-2395.197242,9.463e-05,2]
[420062555,1775643625396,-1676.88779515,9.463e-05,2]
[420062556,1775643625548,-718.30944685,9.463e-05,2]
[420062557,1775643625577,-2395.197242,9.463e-05,2]
[420062558,1775643625605,-2395.19724199,9.463e-05,2]
[420062559,1775643625629,-1000.0,9.465e-05,2]
[420062560,1775643625653,-500.0,9.465e-05,2]
[420062561,1775643625678,-1000.0,9.465e-05,2]
[420062562,1775643625704,-500.0,9.465e-05,2]
[420062563,1775643625728,-500.0,9.465e-05,2]
[420062564,1775643625753,-412.11465763,9.465e-05,2]
[420062565,1775643625777,-500.0,9.465e-05,2]
[420062566,1775643625804,-79.18141153,9.465e-05,2]
[420062567,1775643627126,-420.81858847,9.465e-05,2]
[420062568,1775643627151,-500.0,9.466e-05,2]
[420062569,1775643627178,-9079.18141153,9.466e-05,2]
[420062570,1775643627430,-10000.0,9.466e-05,2]
[420062571,1775643627784,-10000.0,9.466e-05,2]
[420062572,1775643628285,-10000.0,9.466e-05,2]
[420062573,1775643628925,-10000.0,9.466e-05,2]
[420062574,1775643629532,-10000.0,9.466e-05,2]
[420062575,1775643630254,-10000.0,9.466e-05,2]
[420062576,1775643630869,-10000.0,9.466e-05,2]
[420062577,1775643631676,-10000.0,9.466e-05,2]
[420062578,1775643632156,-10000.0,9.466e-05,2]
[420062579,1775643634096,-10000.0,9.466e-05,2]
[420062580,1775643636592,-10000.0,9.466e-05,2]
[420062581,1775643639080,-1000.0,9.466e-05,2]
[420062582,1775643640862,-1000.0,9.466e-05,2]
[420062583,1775643641236,-1000.0,9.466e-05,2]
[420062584,1775643641544,-1000.0,9.466e-05,2]
[420062585,1775643641864,-1000.0,9.466e-05,2]
[420062586,1775643642186,-1000.0,9.466e-05,2]
[420062587,1775643642535,-1000.0,9.466e-05,2]
[420062588,1775643643004,-1000.0,9.466e-05,2]
[420062589,1775643643319,-1000.0,9.466e-05,2]
[420062590,1775643645142,-1000.0,9.466e-05,2]
[420062591,1775643645196,-1000.0,9.466e-05,2]
[420062592,1775643645289,-1000.0,9.466e-05,2]
[420062593,1775643645328,-1000.0,9.466e-05,2]
[420062594,1775643645378,-1000.0,9.466e-05,2]
[420062595,1775643645440,-1000.0,9.466e-05,2]
[420062596,1775643645599,-1000.0,9.466e-05,2]
[420062597,1775643645805,-1000.0,9.466e-05,2]
[420062598,1775643646196,-1000.0,9.466e-05,2]
[420062599,1775643646661,-1000.0,9.466e-05,2]
[420062600,1775643647051,-1000.0,9.466e-05,2]
[420062601,1775643647387,-1000.0,9.466e-05,2]
[420062602,1775643647708,-1000.0,9.466e-05,2]
[420062603,1775643648044,-1000.0,9.466e-05,2]
[420062604,1775643648435,-1000.0,9.466e-05,2]
[420062605,1775643648732,-1000.0,9.466e-05,2]
[420062606,1775643649140,-1000.0,9.466e-05,2]
[420062607,1775643649596,-1000.0,9.466e-05,2]
[420062608,1775643649917,-1000.0,9.466e-05,2]
[420062609,1775643650346,-1000.0,9.466e-05,2]
[420062610,1775643650807,-1000.0,9.466e-05,2]
[420062611,1775643651166,-1000.0,9.466e-05,2]
[420062612,1775643651467,-1000.0,9.466e-05,2]
[420062613,1775643651844,-1000.0,9.466e-05,2]
[420062614,1775643652230,-1000.0,9.466e-05,2]
[420062615,1775643652544,-1000.0,9.466e-05,2]
[420062616,1775643652862,-1000.0,9.466e-05,2]
[420062617,1775643653265,-1000.0,9.466e-05,2]
[420062618,1775643653574,-1000.0,9.466e-05,2]
[420062619,1775643654238,-1000.0,9.466e-05,2]
[420062620,1775643654302,-1000.0,9.466e-05,2]
[420062621,1775643654677,-1000.0,9.466e-05,2]
[420062622,1775643655079,-1000.0,9.466e-05,2]
[420062623,1775643656142,-1000.0,9.466e-05,2]
[420062624,1775643656202,-1000.0,9.466e-05,2]
[420062625,1775643656302,-1000.0,9.466e-05,2]
[420062626,1775643656457,-1000.0,9.466e-05,2]
[420062627,1775643656833,-1000.0,9.466e-05,2]
[420062628,1775643657237,-1000.0,9.466e-05,2]
[420062629,1775643658697,-1000.0,9.466e-05,2]
[420062630,1775643659701,-1000.0,9.466e-05,2]
[420062631,1775643662232,-150.0,9.465e-05,2]
[420062632,1775643662256,-3980.0,9.466e-05,2]
[420062633,1775643674466,-1000.0,9.364e-05,2]
[420062634,1775643674779,-1000.0,9.364e-05,2]
[420062635,1775643675168,-1000.0,9.364e-05,2]
[420062636,1775643675621,-1000.0,9.364e-05,2]
[420062637,1775643675999,-1000.0,9.364e-05,2]
[420062638,1775643676336,-1000.0,9.364e-05,2]
[420062639,1775643676656,-775.4221,9.364e-05,2]
[420062640,1775643676679,-224.5779,9.443e-05,2]
[420062641,1775643676958,-275.4221,9.443e-05,2]
[420062642,1775643676982,-300.0,9.465e-05,2]
[420062643,1775643677009,-424.5779,9.465e-05,2]
[420062644,1775643678680,-75.4221,9.465e-05,2]
[420062645,1775643678705,-924.5779,9.466e-05,2]
[420062646,1775643678754,-1000.0,9.466e-05,2]
[420062647,1775643678806,-1000.0,9.466e-05,2]
[420062648,1775643678867,-1000.0,9.466e-05,2]
[420062649,1775643678983,-1000.0,9.466e-05,2]
[420062650,1775643679175,-1000.0,9.466e-05,2]
[420062651,1775643679577,-1000.0,9.466e-05,2]
[420062652,1775643679968,-1000.0,9.466e-05,2]
[420062653,1775643680285,-1000.0,9.466e-05,2]
[420062654,1775643680689,-1000.0,9.466e-05,2]
[420062655,1775643681168,-1000.0,9.466e-05,2]
[420062656,1775643681533,-1000.0,9.466e-05,2]
[420062657,1775643681921,-1000.0,9.466e-05,2]
[420062658,1775643682376,-1000.0,9.466e-05,2]
[420062659,1775643682768,-1000.0,9.466e-05,2]
[420062660,1775643683124,-1000.0,9.466e-05,2]
[420062661,1775643683520,-1000.0,9.466e-05,2]
[420062662,1775643683843,-1000.0,9.466e-05,2]
[420062663,1775643684193,-1000.0,9.466e-05,2]
[420062664,1775643684594,-1000.0,9.466e-05,2]
[420062665,1775643684926,-1000.0,9.466e-05,2]
[420062666,1775643685346,-1000.0,9.466e-05,2]
[420062667,1775643685694,-1000.0,9.466e-05,2]
[420062668,1775643686166,-1000.0,9.466e-05,2]
[420062669,1775643686576,-1000.0,9.466e-05,2]
[420062670,1775643686879,-1000.0,9.466e-05,2]
[420062671,1775643687274,-1000.0,9.466e-05,2]
[420062672,1775643687677,-1000.0,9.466e-05,2]
[420062673,1775643688079,-1000.0,9.466e-05,2]
[420062674,1775643688407,-1000.0,9.466e-05,2]
[420062675,1775643688438,4089.754,9.277e-05,2]
[420062676,1775643688473,245.983,9.277e-05,2]
[420062677,1775643690382,-1000.0,9.466e-05,2]
[420062678,1775643690432,-1000.0,9.466e-05,2]
[420062679,1775643690489,-1000.0,9.466e-05,2]
[420062680,1775643691153,-1000.0,9.466e-05,2]
[420062681,1775643691217,-1000.0,9.466e-05,2]
[420062682,1775643691621,-1000.0,9.466e-05,2]
[420062683,1775643691903,-1000.0,9.466e-05,2]
[420062684,1775643692303,-1000.0,9.466e-05,2]
[420062685,1775643692722,-1000.0,9.466e-05,2]
[420062686,1775643693141,-1000.0,9.466e-05,2]
[420062687,1775643694973,-1000.0,9.466e-05,2]
[420062688,1775643695615,-1000.0,9.466e-05,2]
[420062689,1775643698058,-1000.0,9.366e-05,2]
[420062690,1775643698403,-1000.0,9.366e-05,2]
[420062691,1775643698811,-1000.0,9.366e-05,2]
[420062692,1775643699154,-1000.0,9.366e-05,2]
[420062693,1775643699545,-1000.0,9.366e-05,2]
[420062694,1775643701832,-1000.0,9.366e-05,2]
[420062695,1775643701968,-1000.0,9.366e-05,2]
[420062696,1775643702077,-1000.0,9.366e-05,2]
[420062697,1775643702117,164.273,8.811e-05,2]
[420062698,1775643702138,89.717,8.811e-05,2]
[420062699,1775643702175,-1000.0,9.366e-05,2]
[420062700,1775643703728,-1000.0,9.366e-05,2]
[420062701,1775643704712,-1000.0,9.366e-05,2]
[420062702,1775643705726,-574.4506,9.366e-05,2]
[420062703,1775643705753,-425.5494,9.466e-05,2]
[420062704,1775643706606,-1000.0,9.466e-05,2]
[420062705,1775643707490,-1000.0,9.466e-05,2]
[420062706,1775643708305,-1000.0,9.466e-05,2]
[420062707,1775643709191,-1000.0,9.466e-05,2]
[420062708,1775643731478,193.0,9.466e-05,3]
[420062709,1775643735964,-286.0,9.466e-05,2]
[420062710,1775643735991,-714.0,9.466e-05,2]
[420062711,1775643736898,-1000.0,9.466e-05,2]
[420062712,1775643737735,-1000.0,9.466e-05,2]
[420062713,1775643738574,-1000.0,9.466e-05,2]
[420062714,1775643739413,-1000.0,9.466e-05,2]
[420062715,1775643740171,-1000.0,9.466e-05,2]
[420062716,1775643741119,-1000.0,9.366e-05,2]
[420062717,1775643741799,-1000.0,9.366e-05,2]
[420062718,1775643742574,-1000.0,9.366e-05,2]
[420062719,1775643743357,-331.28996329,9.366e-05,2]
[420062720,1775643743383,-668.71003671,9.466e-05,2]
[420062721,1775643744106,-1000.0,9.466e-05,2]
[420062722,1775643744907,-1000.0,9.466e-05,2]
[420062723,1775643747135,-1000.0,9.466e-05,2]
[420062724,1775643748006,-1000.0,9.466e-05,2]
[420062725,1775643748817,-1000.0,9.466e-05,2]
[420062726,1775643766958,410.3175,9.265e-05,2]
[420062727,1775643785858,193.0,9.265e-05,3]
[420062729,1775643805903,2943.39,8.732e-05,2]
[420062732,1775643871238,1600.0,8.638e-05,2]
[420062735,1775643912219,155.0,8.638e-05,3]
[420062736,1775643973003,8400.01,8.613e-05,2]
[420062737,1775643973027,208.11,8.613e-05,2]
[420062739,1775644005840,-850.01,9.318e-05,2]
[420062740,1775644005864,-149.99,9.365e-05,2]
[420062741,1775644006965,-1000.0,9.365e-05,2]
[420062742,1775644007891,-50.01,9.365e-05,2]
[420062743,1775644007916,-300.0,9.365e-05,2]
[420062744,1775644007941,-649.99,9.365e-05,2]
[420062745,1775644008745,-550.01,9.365e-05,2]
[420062746,1775644008770,-300.0,9.365e-05,2]
[420062747,1775644008794,-149.99,9.365e-05,2]
[420062748,1775644009711,-134.01,9.365e-05,2]
[420062749,1775644009734,-865.99,9.365e-05,2]
[420062750,1775644011363,-1000.0,9.365e-05,2]
[420062751,1775644012438,-1000.0,9.365e-05,2]
[420062752,1775644013373,-1000.0,9.365e-05,2]
[420062753,1775644014272,-1000.0,9.365e-05,2]
[420062754,1775644015128,-1000.0,9.365e-05,2]
[420062755,1775644015953,-1000.0,9.365e-05,2]
[420062756,1775644017334,-1000.0,9.365e-05,2]
[420062757,1775644018874,-117.49099723,9.365e-05,2]
[420062758,1775644018900,-500.0,9.365e-05,2]
[420062759,1775644018925,-382.50900277,9.365e-05,2]
[420062760,1775644019924,-117.49099723,9.365e-05,2]
[420062761,1775644019950,-449.15804697,9.365e-05,2]
[420062762,1775644019976,-394.44209186,9.365e-05,2]
[420062763,1775644019999,-38.90886394,9.365e-05,2]
[420062764,1775644020959,-461.09113606,9.365e-05,2]
[420062765,1775644020983,-188.48026034,9.365e-05,2]
[420062766,1775644021008,-350.4286036,9.365e-05,2]
[420062767,1775644022860,-150.0,9.364e-05,2]
[420062768,1775644022884,-149.5713964,9.365e-05,2]
[420062769,1775644022909,-500.0,9.365e-05,2]
[420062770,1775644022932,-200.4286036,9.365e-05,2]
[420062771,1775644024049,-300.0,9.364e-05,2]
[420062772,1775644024075,-299.5713964,9.365e-05,2]
[420062773,1775644024100,-225.85964324,9.365e-05,2]
[420062774,1775644024130,-174.56896036,9.365e-05,2]
[420062775,1775644025115,152.0,8.638e-05,3]
[420062776,1775644025199,-325.43103964,9.365e-05,2]
[420062777,1775644025228,-500.0,9.365e-05,2]
[420062778,1775644025261,-174.56896036,9.365e-05,2]
[420062779,1775644026320,-325.43103964,9.365e-05,2]
[420062780,1775644026350,-500.0,9.365e-05,2]
[420062781,1775644026380,-174.56896036,9.365e-05,2]
[420062782,1775644027389,-325.43103964,9.365e-05,2]
[420062783,1775644027422,-500.0,9.365e-05,2]
[420062784,1775644027454,-174.56896036,9.365e-05,2]
[420062785,1775644040236,10000.01,9.266e-05,2]
[420062786,1775644040260,5000.01,9.266e-05,2]
[420062787,1775644040285,5000.01,9.266e-05,2]
[420062788,1775644040310,5000.01,9.266e-05,2]
[420062789,1775644043027,-283.0,9.266e-05,2]
[420062790,1775644046487,-782.4755,9.266e-05,2]
[420062791,1775644046509,-5000.01,9.266e-05,2]
[420062792,1775644066719,152.0,9.266e-05,3]
[420062793,1775644080312,9016.06,8.596e-05,2]
[420062794,1775644085114,152.0,9.266e-05,3]
[420062795,1775644088187,283.332366,7.945e-05,2]
[420062797,1775644148702,152.0,7.945e-05,3]
[420062798,1775644164726,-1000.0,8.585e-05,2]
[420062799,1775644165638,-1000.0,8.585e-05,2]
[420062800,1775644171575,-361.38,8.585e-05,2]
[420062801,1775644171604,-211.1,8.601e-05,2]
[420062802,1775644171632,-427.52,9.233e-05,2]